bitfinex/quotes_BTCUSD_20251007
["timestamp","ask_amount","ask_price","bid_price","bid_amount"]
[1759840712445,0.0015954,124470.0,124460.0,2.3649642]
[1759840714256,0.0015954,124470.0,124460.0,1.5706842]
[1759840714483,0.0015954,124470.0,124460.0,2.6482042]
[1759840714709,0.0015954,124470.0,124460.0,1.6706842]
[1759840714937,0.0015954,124470.0,124460.0,2.6494042]
[1759840715407,0.0005954,124470.0,124460.0,1.6676842]
[1759840715613,0.0005954,124470.0,124460.0,2.6464042]
[1759840715823,0.0015954,124470.0,124460.0,2.6524042]
[1759840716035,0.0015954,124470.0,124460.0,2.6464042]
[1759840716243,0.06556749,124520.0,124500.0,0.16063746]
[1759840716244,0.02736289,124520.0,124500.0,0.16063746]
[1759840716471,0.0274427,124520.0,124510.0,0.99552206]
[1759840716902,0.0274427,124520.0,124510.0,1.02775644]
[1759840717346,7.981e-05,124520.0,124510.0,1.02775644]
[1759840717537,7.981e-05,124520.0,124510.0,0.38291644]
[1759840717782,7.981e-05,124520.0,124510.0,1.08080672]
[1759840718023,0.00107981,124520.0,124510.0,1.08080672]
[1759840718649,0.00207981,124520.0,124510.0,1.08080672]
[1759840719099,0.00107981,124520.0,124510.0,1.08080672]
[1759840719330,0.00107981,124520.0,124510.0,1.18431985]
[1759840719553,0.00307981,124520.0,124510.0,1.18531985]
[1759840719767,0.00307981,124520.0,124510.0,1.22713985]
[1759840720007,0.00307981,124520.0,124510.0,0.54051985]
[1759840720172,0.00307981,124520.0,124510.0,1.18523985]
[1759840720421,0.00307981,124520.0,124510.0,1.22705985]
[1759840720760,0.00307981,124520.0,124510.0,1.38768951]
[1759840722432,0.00307981,124520.0,124510.0,1.42142951]
[1759840722643,0.00307981,124520.0,124510.0,1.76142951]
[1759840722848,0.00407161,124520.0,124510.0,2.51262051]
[1759840724504,0.00407161,124520.0,124510.0,2.76294051]
[1759840724718,0.00407161,124520.0,124510.0,2.84638051]
[1759840724931,0.00407161,124520.0,124510.0,2.79396851]
[1759840725770,0.00407161,124520.0,124510.0,2.70855151]
[1759840725981,0.00407161,124520.0,124510.0,2.70847151]
[1759840726407,0.00407161,124520.0,124510.0,2.70843151]
[1759840727040,0.00407161,124520.0,124510.0,2.74343151]
[1759840727257,0.0002,124530.0,124520.0,0.53076866]
[1759840727472,0.0002,124530.0,124520.0,3.41123413]
[1759840727696,0.0002,124530.0,124520.0,4.50410413]
[1759840728170,0.0002,124530.0,124520.0,2.25377223]
[1759840728385,0.0002,124530.0,124520.0,2.29172223]
[1759840729231,0.0012,124530.0,124520.0,2.29372223]
[1759840729466,0.0012,124530.0,124520.0,2.29572223]
[1759840729674,0.0012,124530.0,124520.0,1.85681123]
[1759840729879,0.0012,124530.0,124520.0,2.22130123]
[1759840730075,0.0012,124530.0,124520.0,0.94969423]
[1759840730280,0.0012,124530.0,124520.0,1.59816323]
[1759840730492,0.0012,124530.0,124520.0,2.01540323]
[1759840731256,0.0012,124530.0,124520.0,1.46955423]
[1759840731434,0.0012,124530.0,124520.0,1.72617747]
[1759840731637,0.0012,124530.0,124520.0,1.89403647]
[1759840731848,0.0012,124530.0,124520.0,2.05465323]
[1759840732065,0.0012,124530.0,124520.0,2.04965323]
[1759840732827,0.0012,124530.0,124520.0,2.07374844]
[1759840733052,0.00139831,124530.0,124520.0,2.05901144]
[1759840733402,0.00139831,124530.0,124520.0,0.93196944]
[1759840733612,0.00139831,124530.0,124520.0,2.13881444]
[1759840733816,0.00139831,124530.0,124520.0,2.05251444]
[1759840734060,0.00139831,124530.0,124520.0,1.82728944]
[1759840734278,0.00139831,124530.0,124520.0,0.72729268]
[1759840734518,0.16200218,124530.0,124520.0,0.61286541]
[1759840734724,0.16200218,124530.0,124520.0,0.19566541]
[1759840734871,0.16200218,124530.0,124520.0,0.84070541]
[1759840736820,0.00139831,124530.0,124520.0,0.88421541]
[1759840736967,0.00139831,124530.0,124520.0,0.96917541]
[1759840740081,0.00139831,124530.0,124520.0,1.25473423]
[1759840740298,0.00139831,124530.0,124520.0,1.29237423]
[1759840741689,0.00139831,124530.0,124520.0,3.09608023]
[1759840742112,0.00139831,124530.0,124520.0,3.12017393]
[1759840744625,0.00139831,124530.0,124520.0,3.15032583]
[1759840747031,0.00139831,124530.0,124520.0,2.70171383]
[1759840747286,0.00139831,124530.0,124520.0,1.93419983]
[1759840747499,0.00139831,124530.0,124520.0,1.40001183]
[1759840747709,0.00139831,124530.0,124520.0,2.22869593]
[1759840747856,0.00139831,124530.0,124520.0,2.31213593]
[1759840748273,0.00139831,124530.0,124520.0,1.86084593]
[1759840748456,0.00139831,124530.0,124520.0,2.27804593]
[1759840749974,0.00139831,124530.0,124520.0,1.29932593]
[1759840750132,0.00139831,124530.0,124520.0,2.23582993]
[1759840750349,0.00139831,124530.0,124520.0,1.25706993]
[1759840750548,0.00139831,124530.0,124520.0,2.23582993]
[1759840751304,0.00139831,124530.0,124520.0,2.23578993]
[1759840752534,0.00139831,124530.0,124520.0,1.25706993]
[1759840752950,0.00139831,124530.0,124520.0,2.15230993]
[1759840753512,0.00139831,124530.0,124520.0,2.23574993]
[1759840753721,0.00139831,124530.0,124520.0,1.25706993]
[1759840753944,0.00139831,124530.0,124520.0,2.23574993]
[1759840754378,0.00139831,124530.0,124520.0,1.81850993]
[1759840754591,0.00139831,124530.0,124520.0,2.23562993]
[1759840755006,0.00139831,124530.0,124520.0,1.25706993]
[1759840755212,0.00139831,124530.0,124520.0,2.23562993]
[1759840755640,0.00139831,124530.0,124520.0,2.23558993]
[1759840762036,0.00139831,124530.0,124520.0,1.77040493]
[1759840762270,0.00139831,124530.0,124520.0,2.18752493]
[1759840768408,0.00139831,124530.0,124520.0,2.18744493]
[1759840778124,0.00139831,124530.0,124520.0,2.24259683]
[1759840778366,0.00139831,124530.0,124520.0,2.34311697]
[1759840779003,0.27243995,124550.0,124540.0,0.16059097]
[1759840779227,0.27243995,124550.0,124540.0,2.88224551]
[1759840779440,0.27243995,124550.0,124540.0,3.08554751]
[1759840779654,0.27243995,124550.0,124540.0,3.10963864]
[1759840779872,0.27243995,124550.0,124540.0,2.19438864]
[1759840780056,0.27243995,124550.0,124540.0,2.49543364]
[1759840780307,0.27243995,124550.0,124540.0,2.34977664]
[1759840780457,0.27343995,124550.0,124540.0,2.35077664]
[1759840780642,0.27343995,124550.0,124540.0,1.84316664]
[1759840780829,0.27343995,124550.0,124540.0,0.86488664]
[1759840781051,0.27343995,124550.0,124540.0,1.84316664]
[1759840781461,0.27343995,124550.0,124540.0,1.67281364]
[1759840782164,0.27343995,124550.0,124540.0,0.69453364]
[1759840782434,0.27343995,124550.0,124540.0,1.67281364]
[1759840782645,0.27343995,124550.0,124540.0,0.49304267]
[1759840782805,0.27343995,124550.0,124540.0,1.63187364]
[1759840784800,0.27383648,124550.0,124540.0,1.63187364]
[1759840785025,0.27383648,124550.0,124540.0,0.65363364]
[1759840785295,0.27383648,124550.0,124540.0,1.63183364]
[1759840786387,0.27383648,124550.0,124540.0,1.60774251]
[1759840789838,0.27383648,124550.0,124540.0,0.62954251]
[1759840790063,0.27383648,124550.0,124540.0,0.75921154]
[1759840790302,0.27383648,124550.0,124540.0,1.02679154]
[1759840791172,0.27383648,124550.0,124540.0,1.02683154]
[1759840792374,0.27383648,124550.0,124540.0,1.07079154]
[1759840799555,0.43518456,124550.0,124540.0,0.25498948]
[1759840799764,0.43518456,124550.0,124540.0,0.89930948]
[1759840799970,0.43441456,124550.0,124540.0,0.89930948]
[1759840800731,0.27383648,124550.0,124540.0,0.94283948]
[1759840800889,0.27383648,124550.0,124540.0,0.98679948]
[1759840801583,0.43441456,124550.0,124540.0,0.98679948]
[1759840805880,0.43441456,124550.0,124540.0,0.34247948]
[1759840806095,0.43441456,124550.0,124540.0,0.94279948]
[1759840806854,0.27383648,124550.0,124540.0,1.28279948]
[1759840807062,0.27383648,124550.0,124540.0,1.36556948]
[1759840807491,0.27383648,124550.0,124540.0,1.44869154]
[1759840807912,0.27383648,124550.0,124540.0,1.60928251]
[1759840809170,0.27383648,124550.0,124540.0,0.80441154]
[1759840809373,0.27383648,124550.0,124540.0,1.44865154]
[1759840809569,0.43441456,124550.0,124540.0,0.63851948]
[1759840809830,0.43441456,124550.0,124540.0,1.23918948]
[1759840810160,0.93284365,124550.0,124540.0,0.07252]
[1759840810373,1.03047365,124550.0,124540.0,0.6452]
[1759840811286,0.53313456,124550.0,124540.0,0.6452]
[1759840811557,1.03047365,124550.0,124540.0,0.6452]
[1759840812706,1.03047365,124550.0,124540.0,0.001]
[1759840812952,1.03047365,124550.0,124540.0,0.6452]
[1759840813502,1.03047365,124550.0,124540.0,0.001]
[1759840813721,1.03047365,124550.0,124540.0,0.6452]
[1759840813722,1.07115365,124550.0,124540.0,0.6452]
[1759840813938,1.07115365,124550.0,124540.0,0.001]
[1759840814155,1.07115365,124550.0,124540.0,0.31144]
[1759840816145,0.57381456,124550.0,124540.0,0.31144]
[1759840816359,1.03047365,124550.0,124540.0,0.31144]
[1759840817240,1.07115365,124550.0,124540.0,0.31144]
[1759840818281,1.07115365,124550.0,124540.0,0.001]
[1759840818490,1.6516148,124550.0,124540.0,0.0844]
[1759840818730,1.6516148,124550.0,124540.0,0.001]
[1759840818731,1.7316116,124550.0,124540.0,0.001]
[1759840818856,1.7316116,124550.0,124540.0,0.31148]
[1759840819058,1.1624388,124550.0,124540.0,0.31148]
[1759840819285,1.1624388,124550.0,124540.0,0.001]
[1759840819479,1.65877789,124550.0,124540.0,0.31056]
[1759840819922,1.66277789,124550.0,124540.0,0.31156]
[1759840820064,1.1654388,124550.0,124540.0,0.31156]
[1759840820265,1.66277789,124550.0,124540.0,0.31156]
[1759840820950,1.74277469,124550.0,124540.0,0.31156]
[1759840821175,1.74277469,124550.0,124540.0,0.08444]
[1759840821176,2.61026568,124550.0,124540.0,0.08444]
[1759840821395,2.61026568,124550.0,124540.0,0.31152]
[1759840821396,2.14452808,124550.0,124540.0,0.31152]
[1759840822463,2.13702927,124550.0,124540.0,0.31152]
[1759840823246,2.05703247,124550.0,124540.0,0.31152]
[1759840825252,2.0645241,124550.0,124540.0,0.31152]
[1759840830515,2.06452172,124550.0,124540.0,0.31152]
[1759840833823,0.16060387,124530.0,124520.0,0.00053558]
[1759840834077,1.27043534,124530.0,124520.0,0.08397558]
[1759840834286,1.27237458,124530.0,124520.0,0.08397558]
[1759840834506,1.41057458,124530.0,124520.0,0.08397558]
[1759840834926,0.91323549,124530.0,124520.0,0.31101558]
[1759840835110,0.91423549,124530.0,124520.0,0.31201558]
[1759840836002,0.91323549,124530.0,124520.0,0.31101558]
[1759840836440,0.91623549,124530.0,124520.0,0.31201558]
[1759840836640,0.91823549,124530.0,124520.0,0.31201558]
[1759840838475,0.4208964,124530.0,124520.0,0.31201558]
[1759840838698,0.19957434,124530.0,124520.0,0.42449558]
[1759840838918,0.19957434,124530.0,124520.0,0.57104558]
[1759840838919,0.16560387,124530.0,124520.0,0.57104558]
[1759840839325,0.005,124530.0,124520.0,0.57104558]
[1759840839558,0.16560387,124530.0,124520.0,0.57104558]
[1759840847483,0.16560387,124530.0,124520.0,0.61163558]
[1759840847931,0.005,124530.0,124520.0,0.61163558]
[1759840848257,0.005,124530.0,124520.0,0.65423558]
[1759840848894,0.005,124530.0,124520.0,0.69845558]
[1759840849524,0.005,124530.0,124520.0,0.9421944]
[1759840850155,0.005,124530.0,124520.0,0.6317144]
[1759840850580,0.005,124530.0,124520.0,1.6097944]
[1759840850780,0.002,124530.0,124520.0,1.6087944]
[1759840851195,0.001,124530.0,124520.0,1.6107944]
[1759840852958,0.001,124530.0,124520.0,1.9567944]
[1759840853403,0.001,124530.0,124520.0,1.98088837]
[1759840855400,0.001,124530.0,124520.0,1.00280837]
[1759840855657,0.001,124530.0,124520.0,1.98084837]
[1759840856443,0.001,124530.0,124520.0,1.00280837]
[1759840856648,0.001,124530.0,124520.0,1.98072837]
[1759840859397,0.001,124530.0,124520.0,1.00280837]
[1759840859593,0.001,124530.0,124520.0,1.98072837]
[1759840859877,0.001,124530.0,124520.0,1.56352837]
[1759840860070,0.001,124530.0,124520.0,1.98072837]
[1759840860927,0.001,124530.0,124520.0,1.00280837]
[1759840861133,0.001,124530.0,124520.0,1.98068837]
[1759840866494,0.001,124530.0,124520.0,1.00280837]
[1759840866925,0.001,124530.0,124520.0,1.98064837]
[1759840867547,0.001,124530.0,124520.0,1.00280837]
[1759840868101,0.001,124530.0,124520.0,1.98060837]
[1759840870723,0.001,124530.0,124520.0,1.89716837]
[1759840871028,0.001,124530.0,124520.0,1.98060837]
[1759840872253,0.001,124530.0,124520.0,1.00280837]
[1759840872414,0.001,124530.0,124520.0,1.98056837]
[1759840874027,0.001,124530.0,124520.0,1.00280837]
[1759840874226,0.001,124530.0,124520.0,1.98056837]
[1759840874886,0.001,124530.0,124520.0,1.33656837]
[1759840875095,0.001,124530.0,124520.0,1.00280837]
[1759840875305,0.001,124530.0,124520.0,1.64676837]
[1759840876954,0.001,124530.0,124520.0,0.84219161]
[1759840877168,0.001,124530.0,124520.0,1.46201764]
[1759840877659,0.001,124530.0,124520.0,1.6226344]
[1759840884383,0.001,124530.0,124520.0,3.0379364]
[1759840884911,0.001,124530.0,124520.0,2.6295024]
[1759840889250,0.001,124530.0,124520.0,1.7642034]
[1759840889675,0.001,124530.0,124520.0,1.6226344]
[1759840889881,0.001,124530.0,124520.0,1.7642034]
[1759840892456,0.001,124530.0,124520.0,1.6226344]
[1759840892900,0.001,124530.0,124520.0,1.7592034]
[1759840893410,0.001,124530.0,124520.0,1.6226344]
[1759840893571,0.001,124530.0,124520.0,1.7592034]
[1759840900207,0.001,124530.0,124520.0,1.46201764]
[1759840900359,0.001,124530.0,124520.0,1.46185764]
[1759840900536,0.001,124530.0,124520.0,1.6224744]
[1759840900750,0.001,124530.0,124520.0,1.46185764]
[1759840901003,0.16160387,124530.0,124520.0,0.72527558]
[1759840901208,0.16209387,124530.0,124520.0,0.76477558]
[1759840901771,0.16209387,124530.0,124520.0,0.12101558]
[1759840901972,0.16209387,124530.0,124520.0,0.53813558]
[1759840902389,0.16209387,124530.0,124520.0,0.76477558]
[1759840904406,0.16209387,124530.0,124520.0,0.87437558]
[1759840904728,0.16160387,124530.0,124520.0,0.91566558]
[1759840906890,0.001,124530.0,124520.0,0.95963558]
[1759840907093,0.16160387,124530.0,124520.0,1.02703451]
[1759840907459,0.16160387,124530.0,124520.0,0.98373451]
[1759840911431,0.16160387,124530.0,124520.0,0.93976451]
[1759840911843,0.16160387,124530.0,124520.0,0.29600451]
[1759840912048,0.16160387,124530.0,124520.0,0.98385451]
[1759840912787,0.16160387,124530.0,124520.0,0.29600451]
[1759840912990,0.16160387,124530.0,124520.0,0.93988451]
[1759840913915,0.16078947,124540.0,124530.0,0.83839613]
[1759840914916,0.16078947,124540.0,124530.0,0.90652613]
[1759840915125,0.16178947,124540.0,124530.0,1.10073613]
[1759840915351,0.16178947,124540.0,124530.0,1.05944613]
[1759840916513,0.16178947,124540.0,124530.0,1.06344613]
[1759840921243,0.16178947,124540.0,124530.0,1.29012613]
[1759840922985,0.16178947,124540.0,124530.0,1.33141613]
[1759840924864,0.16178947,124540.0,124530.0,1.37538613]
[1759840928049,0.16221947,124540.0,124530.0,1.55544613]
[1759840928248,0.16178947,124540.0,124530.0,1.71056613]
[1759840929143,0.16178947,124540.0,124530.0,1.71052613]
[1759840930926,0.16178947,124540.0,124530.0,1.06664613]
[1759840931144,0.22061947,124540.0,124530.0,1.48727613]
[1759840931352,0.22061947,124540.0,124530.0,0.84339613]
[1759840931643,0.22162947,124540.0,124530.0,1.48727613]
[1759840932311,0.22162947,124540.0,124530.0,1.17715613]
[1759840932533,0.26464947,124540.0,124530.0,1.07007613]
[1759840932751,0.26464947,124540.0,124530.0,1.48727613]
[1759840932947,0.26464947,124540.0,124530.0,0.84339613]
[1759840933183,0.22162947,124540.0,124530.0,1.15351613]
[1759840933400,0.22061947,124540.0,124530.0,1.22360613]
[1759840933616,0.22061947,124540.0,124530.0,1.15351613]
[1759840936927,0.24429947,124540.0,124530.0,1.15351613]
[1759840939112,0.24429947,124540.0,124530.0,1.48727613]
[1759840940659,0.22061947,124540.0,124530.0,1.55736613]
[1759840942379,0.22061947,124540.0,124530.0,1.60105613]
[1759840942612,0.16178947,124540.0,124530.0,1.71248613]
[1759840943162,0.16178925,124540.0,124530.0,1.83847613]
[1759840943381,0.00119828,124540.0,124530.0,1.87639613]
[1759840943601,0.00119828,124540.0,124530.0,2.06109593]
[1759840944214,0.00119828,124540.0,124530.0,2.12056359]
[1759840944429,0.00119828,124540.0,124530.0,2.20368565]
[1759840949414,0.00119828,124540.0,124530.0,2.53740565]
[1759840952496,0.00119828,124540.0,124530.0,2.12020565]
[1759840952702,0.00119828,124540.0,124530.0,2.20364565]
[1759840952813,0.00119828,124540.0,124530.0,1.55980565]
[1759840953028,0.00119828,124540.0,124530.0,2.20364565]
[1759840953784,0.00119828,124540.0,124530.0,2.18864565]
[1759840961095,0.00119828,124540.0,124530.0,1.54480565]
[1759840961304,0.00119828,124540.0,124530.0,1.77140565]
[1759840961516,0.00119828,124540.0,124530.0,2.18852565]
[1759840972478,0.00119828,124540.0,124530.0,2.10512565]
[1759840972687,0.00119828,124540.0,124530.0,2.18852565]
[1759840981477,0.00119828,124540.0,124530.0,2.52852565]
[1759840982884,0.00119828,124540.0,124530.0,4.11652965]
[1759840983320,0.00119828,124540.0,124530.0,3.65756765]
[1759840983458,0.00119828,124540.0,124530.0,3.53657565]
[1759840984481,0.00119828,124540.0,124530.0,2.30192565]
[1759840984694,0.00119828,124540.0,124530.0,2.49060565]
[1759840984865,0.00119828,124540.0,124530.0,2.65033165]
[1759840985086,0.00119828,124540.0,124530.0,2.49060565]
[1759840985237,0.00119828,124540.0,124530.0,2.07348565]
[1759840985441,0.00119828,124540.0,124530.0,2.49060565]
[1759840985686,0.16178925,124540.0,124530.0,1.68628178]
[1759840985887,0.16178925,124540.0,124530.0,2.06161178]
[1759840986136,0.16178925,124540.0,124530.0,2.16176972]
[1759840986354,0.16178925,124540.0,124530.0,1.51804972]
[1759840986562,0.16178925,124540.0,124530.0,1.75679379]
[1759840987414,0.16178925,124540.0,124530.0,1.11307379]
[1759840987616,0.16178925,124540.0,124530.0,1.75679379]
[1759840989697,0.16178925,124540.0,124530.0,1.11307379]
[1759840989906,0.16178925,124540.0,124530.0,1.75679379]
[1759840990907,0.16271925,124540.0,124530.0,1.75679379]
[1759840992006,0.16271925,124540.0,124530.0,1.11307379]
[1759840992231,0.16271925,124540.0,124530.0,1.75679379]
[1759840992644,0.16178925,124540.0,124530.0,1.75679379]
[1759840993263,0.16271925,124540.0,124530.0,1.64311379]
[1759840993886,0.16271925,124540.0,124530.0,0.93992613]
[1759840994091,0.16271925,124540.0,124530.0,1.58364613]
[1759840997293,0.16178925,124540.0,124530.0,1.68758613]
[1759840999864,0.19038925,124540.0,124530.0,0.93992613]
[1759841000046,0.23584925,124540.0,124530.0,1.47219613]
[1759841001864,0.19038925,124540.0,124530.0,1.47219613]
[1759841002467,0.19038925,124540.0,124530.0,1.58314613]
[1759841002672,0.19038925,124540.0,124530.0,1.68708613]
[1759841004202,0.19038925,124540.0,124530.0,1.58314613]
[1759841010162,0.19038925,124540.0,124530.0,1.54170613]
[1759841010283,0.19038925,124540.0,124530.0,1.47219613]
[1759841010491,0.23582925,124540.0,124530.0,1.24559613]
[1759841010677,0.23582925,124540.0,124530.0,1.47219613]
[1759841020760,0.19038925,124540.0,124530.0,1.47219613]
[1759841021399,0.23582925,124540.0,124530.0,1.47219613]
[1759841024868,0.19038925,124540.0,124530.0,1.47219613]
[1759841025488,0.19038925,124540.0,124530.0,1.54084613]
[1759841028141,0.19038925,124540.0,124530.0,1.58538613]
[1759841029350,0.19038925,124540.0,124530.0,1.54084613]
[1759841039333,0.19038925,124540.0,124530.0,1.47219613]
[1759841040039,0.19038925,124540.0,124530.0,1.54084613]
[1759841042394,0.19038925,124540.0,124530.0,1.47219613]
[1759841042935,0.19038925,124540.0,124530.0,0.82839613]
[1759841043118,0.27960925,124540.0,124530.0,1.24559613]
[1759841043315,0.43181504,124540.0,124530.0,1.24559613]
[1759841043519,0.38683328,124540.0,124530.0,1.47215613]
[1759841044173,0.38683328,124540.0,124530.0,1.46815613]
[1759841044487,0.38583328,124540.0,124530.0,1.46715613]
[1759841044814,0.38783328,124540.0,124530.0,1.46815613]
[1759841051290,0.43600328,124540.0,124530.0,1.46815613]
[1759841051511,0.38783328,124540.0,124530.0,1.46815613]
[1759841053723,0.00219828,124540.0,124530.0,1.98493]
[1759841053931,0.00219828,124540.0,124530.0,3.19566829]
[1759841054125,0.00219828,124540.0,124530.0,3.21976178]
[1759841054598,0.00219828,124540.0,124530.0,3.46794978]
[1759841054808,0.00019828,124540.0,124530.0,3.46794978]
[1759841055065,0.00119828,124540.0,124530.0,3.47794978]
[1759841055674,0.00019828,124540.0,124530.0,3.47594978]
[1759841056025,0.00119828,124540.0,124530.0,3.47994978]
[1759841061283,0.00119828,124540.0,124530.0,3.51010168]
[1759841064943,0.27243995,124550.0,124530.0,3.51010168]
[1759841065164,0.23363823,124550.0,124540.0,3.94022903]
[1759841065596,0.23363823,124550.0,124540.0,3.47526683]
[1759841065806,0.23383649,124550.0,124540.0,3.32780483]
[1759841066229,0.23383649,124550.0,124540.0,3.22612783]
[1759841066668,0.23383649,124550.0,124540.0,2.19523383]
[1759841066895,0.23483649,124550.0,124540.0,3.17259383]
[1759841067626,0.23491621,124550.0,124540.0,3.17259383]
[1759841068069,0.23491621,124550.0,124540.0,3.17859383]
[1759841068284,0.23391621,124550.0,124540.0,3.17859383]
[1759841068629,0.23491621,124550.0,124540.0,3.18159383]
[1759841073096,0.23491621,124550.0,124540.0,3.21174573]
[1759841075694,0.23491621,124550.0,124540.0,3.21162573]
[1759841076342,0.23491621,124550.0,124540.0,2.23438573]
[1759841076520,0.23491621,124550.0,124540.0,3.21162573]
[1759841077492,0.19491621,124550.0,124540.0,3.21162573]
[1759841078795,0.19491621,124550.0,124540.0,2.79454573]
[1759841078999,0.19491621,124550.0,124540.0,3.12822573]
[1759841079215,0.19491621,124550.0,124540.0,3.21162573]
[1759841079420,0.19491621,124550.0,124540.0,2.23438573]
[1759841079624,0.19491621,124550.0,124540.0,3.21162573]
[1759841080050,0.19491621,124550.0,124540.0,2.23438573]
[1759841080258,0.19491621,124550.0,124540.0,3.21162573]
[1759841080614,0.19491621,124550.0,124540.0,2.23438573]
[1759841080810,0.19491621,124550.0,124540.0,3.21162573]
[1759841081279,0.19491621,124550.0,124540.0,2.79454573]
[1759841081470,0.19491621,124550.0,124540.0,3.21162573]
[1759841082309,0.19491621,124550.0,124540.0,3.12822573]
[1759841082495,0.19491621,124550.0,124540.0,3.21162573]
[1759841082680,0.19491621,124550.0,124540.0,2.23438573]
[1759841082882,0.19491621,124550.0,124540.0,3.12822573]
[1759841083082,0.19491621,124550.0,124540.0,3.21162573]
[1759841085135,0.15491621,124550.0,124540.0,3.21162573]
[1759841086177,0.15491621,124550.0,124540.0,2.23438573]
[1759841086388,0.15491621,124550.0,124540.0,3.09624073]
[1759841087795,0.15491621,124550.0,124540.0,2.11900073]
[1759841088050,0.15491621,124550.0,124540.0,3.09624073]
[1759841088475,0.15491621,124550.0,124540.0,3.09620073]
[1759841097954,0.11491621,124550.0,124540.0,3.09620073]
[1759841098378,0.11491621,124550.0,124540.0,2.67912073]
[1759841098616,0.11491621,124550.0,124540.0,2.11900073]
[1759841098837,0.11491621,124550.0,124540.0,3.09612614]
[1759841100493,0.11491621,124550.0,124540.0,2.11892614]
[1759841100679,0.11491621,124550.0,124540.0,3.09612614]
[1759841100906,0.11491621,124550.0,124540.0,2.11892614]
[1759841101138,0.11491621,124550.0,124540.0,3.09612614]
[1759841105024,0.07491621,124550.0,124540.0,3.09612614]
[1759841109746,0.07491621,124550.0,124540.0,2.11892614]
[1759841109994,0.07491621,124550.0,124540.0,3.09612614]
[1759841110219,0.30106942,124560.0,124550.0,1.249058]
[1759841110438,0.3015658,124560.0,124550.0,2.90856006]
[1759841110681,0.3015658,124560.0,124550.0,3.07114006]
[1759841110933,0.30176403,124560.0,124550.0,3.0952289]
[1759841111366,0.30276403,124560.0,124550.0,3.0962289]
[1759841112026,0.30276403,124560.0,124550.0,3.1002289]
[1759841113193,0.25970998,124560.0,124550.0,3.1303808]
[1759841113469,0.55736422,124570.0,124560.0,0.53071708]
[1759841113705,0.34620303,124620.0,124610.0,0.50050076]
[1759841113941,0.34620303,124620.0,124610.0,6.76044266]
[1759841114175,0.23375266,124620.0,124610.0,5.88566266]
[1759841114427,0.23375266,124620.0,124610.0,5.10806941]
[1759841114638,0.23375266,124620.0,124610.0,4.23443341]
[1759841114842,0.23375266,124620.0,124610.0,3.57682051]
[1759841115063,0.23375266,124620.0,124610.0,3.18763177]
[1759841115298,0.23375266,124620.0,124610.0,3.19963177]
[1759841115513,0.23375266,124620.0,124610.0,1.89591002]
[1759841115736,0.23375266,124620.0,124610.0,2.49781702]
[1759841115955,0.23375266,124620.0,124610.0,1.37769502]
[1759841116183,0.23375266,124620.0,124610.0,2.08729502]
[1759841116406,0.23475266,124620.0,124610.0,3.34746608]
[1759841116635,0.23475266,124620.0,124610.0,3.36561798]
[1759841117096,0.19375266,124620.0,124610.0,3.36661798]
[1759841117293,0.19475266,124620.0,124610.0,3.36961798]
[1759841117822,0.35912263,124640.0,124620.0,0.54651899]
[1759841118037,0.40796113,124650.0,124640.0,0.53061403]
[1759841118276,0.40796113,124650.0,124640.0,5.49455209]
[1759841118493,0.40796113,124650.0,124640.0,5.81783209]
[1759841118720,0.40796113,124650.0,124640.0,5.84190058]
[1759841120157,0.40896113,124650.0,124640.0,5.85790058]
[1759841120403,0.001,124650.0,124640.0,5.98290058]
[1759841120622,0.542265,124660.0,124650.0,0.55560115]
[1759841120879,0.51835929,124660.0,124650.0,5.68257921]
[1759841121093,0.49630195,124660.0,124650.0,5.68257921]
[1759841121326,0.47226394,124660.0,124650.0,5.42585921]
[1759841121568,0.47226394,124660.0,124650.0,5.74097921]
[1759841121996,0.47326394,124660.0,124650.0,5.74697921]
[1759841122204,0.26990546,124670.0,124660.0,0.65558828]
[1759841122427,0.39322074,124680.0,124670.0,0.52542351]
[1759841122655,0.39322074,124680.0,124670.0,6.21303347]
[1759841122870,0.08018594,124750.0,124700.0,0.50038458]
[1759841123115,0.08018594,124750.0,124710.0,0.39932206]
[1759841123116,0.00049595,124720.0,124710.0,0.39932206]
[1759841123328,0.00791711,124720.0,124710.0,1.08698206]
[1759841123546,0.00791711,124720.0,124710.0,1.00386]
[1759841123547,0.00049595,124720.0,124710.0,1.00386]
[1759841123768,0.0774796,124720.0,124710.0,0.72466]
[1759841123974,0.0774796,124720.0,124710.0,0.72458]
[1759841124441,0.2378388,124720.0,124710.0,0.64964]
[1759841125065,0.36591086,124720.0,124710.0,0.64964]
[1759841125262,0.36691086,124720.0,124710.0,0.64964]
[1759841125685,0.32196086,124720.0,124710.0,0.64964]
[1759841126386,0.32096086,124720.0,124710.0,0.64964]
[1759841126751,0.69111276,124720.0,124710.0,1.14964]
[1759841126960,0.77410956,124720.0,124710.0,1.15064]
[1759841127393,0.77110956,124720.0,124710.0,1.14964]
[1759841127581,0.77110956,124720.0,124710.0,1.15064]
[1759841127802,0.77510956,124720.0,124710.0,1.26552]
[1759841128011,0.69511276,124720.0,124710.0,1.26552]
[1759841128688,0.71918208,124720.0,124710.0,1.26552]
[1759841130460,0.71918208,124720.0,124710.0,0.76552]
[1759841130926,0.71918208,124720.0,124710.0,0.73609]
[1759841131156,1.47484846,124720.0,124710.0,0.37336]
[1759841131377,1.55484526,124720.0,124710.0,0.05719249]
[1759841132560,1.60301526,124720.0,124710.0,0.20792249]
[1759841132792,0.19053682,124700.0,124680.0,0.43521]
[1759841133005,0.19053682,124700.0,124680.0,0.42596]
[1759841133006,1.0015916,124690.0,124680.0,0.42596]
[1759841133229,1.0015916,124690.0,124680.0,0.65832]
[1759841133423,1.02566546,124690.0,124680.0,0.65832]
[1759841133873,1.02625928,124690.0,124680.0,0.65832]
[1759841134066,1.02625928,124690.0,124680.0,0.65932]
[1759841134460,1.02625928,124690.0,124680.0,0.66893]
[1759841134604,1.02625928,124690.0,124680.0,0.66793]
[1759841134823,0.27018752,124690.0,124680.0,0.66893]
[1759841136351,0.02666768,124690.0,124680.0,0.69055]
[1759841136513,0.00259382,124690.0,124680.0,2.60875435]
[1759841136944,0.02406394,124730.0,124700.0,0.16038445]
[1759841137063,0.00014875,124730.0,124720.0,0.02162]
[1759841137267,0.00014875,124730.0,124720.0,0.11832]
[1759841137468,0.00079141,124730.0,124720.0,2.78922126]
[1759841137674,0.01056702,124770.0,124740.0,0.50033311]
[1759841137875,0.01071569,124770.0,124750.0,1.97908312]
[1759841138077,0.01071569,124770.0,124760.0,0.03765077]
[1759841138078,0.00389719,124770.0,124760.0,0.03765077]
[1759841138470,0.00389719,124770.0,124760.0,0.13435077]
[1759841138674,0.00389719,124770.0,124760.0,0.11832]
[1759841138886,0.00468822,124770.0,124760.0,0.11832]
[1759841139481,0.00468822,124770.0,124760.0,0.77016]
[1759841139908,0.00568822,124770.0,124760.0,0.77016]
[1759841140237,0.03665896,124800.0,124790.0,0.16026925]
[1759841140463,0.005,124840.0,124800.0,0.34]